[Event "EYTCC Open U18 2022"]
[Site "Thessaloniki"]
[Date "2022.07.12"]
[Round "1.34"]
[White "Gerasopoulos, Nikolaos"]
[Black "Guz, Ari"]
[Result "0-1"]
[ECO "B14"]
[WhiteElo "1526"]
[BlackElo "2331"]
[Annotator "ChessBase"]
[PlyCount "66"]
[EventDate "2022.07.12"]
[EventType "team-tourn"]
[EventCountry "GRE"]
[SourceTitle "playchess.com"]
[Source "ChessBase"]
[SourceQuality "1"]
[WhiteTeam "Greece"]
[BlackTeam "Israel"]
[WhiteTeamCountry "GRE"]
[BlackTeamCountry "ISR"]
[TimeControl "40/5400+30:1800+30"]

1. e4 {[%emt 0:00:02]} c6 {[%emt 0:00:24]} 2. d4 {[%emt 0:00:07]} d5 {[%emt 0:00:14]} 3. exd5 {[%emt 0:00:21]} cxd5 {[%emt 0:00:21]} 4. c4 {[%emt 0:00:22]} Nf6 {[%emt 0:00:12]} 5. Nf3 {[%emt 0:00:37]} g6 {[%emt 0:01:53]} 6. Nc3 {[%emt 0:00:16]} Bg7 {[%emt 0:01:00]} 7. Qb3 {[%emt 0:02:29]} dxc4 {[%emt 0:01:18]} 8. Bxc4 {[%emt 0:00:34]} O-O {[%emt 0:00:13]} 9. Bxf7+ {[%emt 0:08:37]} Rxf7 {[%emt 0:00:15]} 10. Ng5 {[%emt 0:00:07]} Qf8 {[%emt 0:04:12]} 11. O-O {[%emt 0:01:56]} h6 {[%emt 0:00:13]} 12. Nxf7 {[%emt 0:00:10]} Qxf7 {[%emt 0:00:03]} 13. Qa3 {[%emt 0:01:35]} Nc6 {[%emt 0:01:46]} 14. Be3 {[%emt 0:00:38]} Bf5 {[%emt 0:04:21]} 15. Qc5 {[%emt 0:05:21]} Ne4 {[%emt 0:02:01]} 16. Qb5 {[%emt 0:01:08]} Nd6 {[%emt 0:00:34]} 17. Qa4 {[%emt 0:00:43]} Qc4 {[%emt 0:02:03]} 18. Qxc4+ {[%emt 0:07:07]} Nxc4 {[%emt 0:00:12]} 19. b3 {[%emt 0:00:38]} Nxe3 {[%emt 0:00:23]} 20. fxe3 {[%emt 0:00:08]} Nxd4 {[%emt 0:00:14]} 21. Rac1 {[%emt 0:01:48]} Rc8 {[%emt 0:01:40]} 22. Kh1 {[%emt 0:01:20]} Nxb3 {[%emt 0:00:17]} 23. axb3 {[%emt 0:01:37]} Bxc3 {[%emt 0:05:01]} 24. Rfd1 {[%emt 0:04:16]} b5 {[%emt 0:01:15]} 25. Rd5 {[%emt 0:02:12]} b4 {[%emt 0:02:17]} 26. Ra5 {[%emt 0:01:58]} Rc7 {[%emt 0:01:26]} 27. Rb5 {[%emt 0:00:59]} Rd7 {[%emt 0:00:27]} 28. Ra5 {[%emt 0:17:59]} Bc2 {[%emt 0:01:28]} 29. Ra6 {[%emt 0:07:40]} Kg7 {[%emt 0:00:46]} 30. h3 {[%emt 0:00:28]} Bxb3 {[%emt 0:00:44]} 31. e4 {[%emt 0:05:42]} Rd1+ {[%emt 0:00:14]} 32. Rxd1 {[%emt 0:00:07]} Bxd1 {[%emt 0:00:03]} 33. Rxa7 {[%emt 0:01:23]} Kf7 {[%emt 0:00:14]} 0-1

[Event "EYTCC Open U18 2022"]
[Site "Thessaloniki"]
[Date "2022.07.12"]
[Round "1.35"]
[White "Zemach, Nadav"]
[Black "Skodras, Marios Konstantinos"]
[Result "1-0"]
[ECO "E11"]
[WhiteElo "2225"]
[BlackElo "1446"]
[Annotator "ChessBase"]
[PlyCount "63"]
[EventDate "2022.07.12"]
[EventType "team-tourn"]
[EventCountry "GRE"]
[SourceTitle "playchess.com"]
[Source "ChessBase"]
[SourceQuality "1"]
[WhiteTeam "Israel"]
[BlackTeam "Greece"]
[WhiteTeamCountry "ISR"]
[BlackTeamCountry "GRE"]
[TimeControl "40/5400+30:1800+30"]

1. d4 {[%emt 0:00:02]} d5 {[%emt 0:00:13]} 2. c4 {[%emt 0:00:02]} e6 {[%emt 0:00:09]} 3. Nf3 {[%emt 0:00:02]} Nf6 {[%emt 0:00:21]} 4. g3 {[%emt 0:00:06]} Bb4+ {[%emt 0:00:41]} 5. Bd2 {[%emt 0:00:32]} Bxd2+ {[%emt 0:00:12]} 6. Nbxd2 {[%emt 0:01:05]} b6 {[%emt 0:02:57]} 7. cxd5 {[%emt 0:03:49]} exd5 {[%emt 0:00:31]} 8. Bg2 {[%emt 0:00:07]} O-O {[%emt 0:00:59]} 9. O-O {[%emt 0:00:06]} Be6 {[%emt 0:04:44]} 10. Nb1 {[%emt 0:02:51]} Nbd7 {[%emt 0:02:41]} 11. Nc3 {[%emt 0:00:09]} Rc8 {[%emt 0:04:11]} 12. Rc1 {[%emt 0:09:23]} c6 {[%emt 0:02:15]} 13. b4 {[%emt 0:04:52]} Qe7 {[%emt 0:06:21]} 14. Qb3 {[%emt 0:03:29]} c5 {[%emt 0:08:40]} 15. bxc5 {[%emt 0:01:58]} bxc5 {[%emt 0:01:57]} 16. Qa3 {[%emt 0:00:49]} Qd6 {[%emt 0:20:36]} 17. Rfd1 {[%emt 0:03:30]} Qc6 {[%emt 0:04:08]} 18. Ne5 {[%emt 0:05:22]} Nxe5 {[%emt 0:05:17]} 19. dxe5 {[%emt 0:00:06]} Ne4 {[%emt 0:00:54]} 20. Nxe4 {[%emt 0:02:18]} dxe4 {[%emt 0:00:05]} 21. Qxa7 {[%emt 0:02:41]} Rc7 {[%emt 0:04:13]} 22. Qa3 {[%emt 0:01:44]} g6 {[%emt 0:02:59]} 23. Qe3 {[%emt 0:03:45]} Bxa2 {[%emt 0:05:01]} 24. Bxe4 {[%emt 0:01:05]} Qb5 {[%emt 0:00:47]} 25. Bd5 {[%emt 0:04:34]} c4 {[%emt 0:02:38]} 26. e6 {[%emt 0:00:45]} fxe6 {[%emt 0:02:39]} 27. Qxe6+ {[%emt 0:11:56]} Kh8 {[%emt 0:00:28]} 28. Ra1 {[%emt 0:00:38]} Qb2 {[%emt 0:03:01]} 29. Qd6 {[%emt 0:01:34]} Rcc8 {[%emt 0:00:41]} 30. Rxa2 {[%emt 0:00:31]} Qg7 {[%emt 0:01:01]} 31. Be6 {[%emt 0:01:08]} Rc7 {[%emt 0:00:18]} 32. Qd4 {[%emt 0:02:07]} 1-0

[Event "EYTCC Open U18 2022"]
[Site "Thessaloniki"]
[Date "2022.07.12"]
[Round "1.36"]
[White "Chasiotis, Odysseas"]
[Black "Vagman, Roy"]
[Result "0-1"]
[ECO "B33"]
[WhiteElo "1371"]
[BlackElo "2180"]
[Annotator "ChessBase"]
[PlyCount "40"]
[EventDate "2022.07.12"]
[EventType "team-tourn"]
[EventCountry "GRE"]
[SourceTitle "playchess.com"]
[Source "ChessBase"]
[SourceQuality "1"]
[WhiteTeam "Greece"]
[BlackTeam "Israel"]
[WhiteTeamCountry "GRE"]
[BlackTeamCountry "ISR"]
[TimeControl "40/5400+30:1800+30"]

1. e4 {[%emt 0:13:17]} c5 {[%emt 0:00:11]} 2. Nf3 {[%emt 0:00:09]} d6 {[%emt 0:00:20]} 3. d4 {[%emt 0:00:20]} cxd4 {[%emt 0:00:07]} 4. Nxd4 {[%emt 0:00:15]} Nf6 {[%emt 0:00:10]} 5. Nc3 {[%emt 0:00:27]} Nc6 {[%emt 0:00:16]} 6. Nf3 {[%emt 0:07:53]} e5 {[%emt 0:06:31]} 7. Bg5 {[%emt 0:02:23]} Be7 {[%emt 0:00:12]} 8. Qd2 {[%emt 0:04:49]} O-O {[%emt 0:00:54]} 9. Bc4 {[%emt 0:00:38]} Na5 {[%emt 0:08:35]} 10. Bd3 {[%emt 0:01:14]} Be6 {[%emt 0:01:26]} 11. O-O {[%emt 0:02:07]} a6 {[%emt 0:08:49]} 12. Rfd1 {[%emt 0:02:27]} Re8 {[%emt 0:03:23]} 13. Be2 {[%emt 0:01:35]} Qb6 {[%emt 0:12:19]} 14. Rab1 {[%emt 0:01:09]} Rad8 {[%emt 0:08:36]} 15. Be3 {[%emt 0:02:59]} Qc6 {[%emt 0:02:47]} 16. Nd5 {[%emt 0:06:33]} Nc4 {[%emt 0:02:53]} 17. Qd3 {[%emt 0:12:28]} Nxe3 {[%emt 0:02:44]} 18. fxe3 {[%emt 0:01:39]} Bxd5 {[%emt 0:08:35]} 19. exd5 {[%emt 0:00:35]} Qb6 {[%emt 0:00:50]} 20. Ng5 {[%emt 0:03:59]} h6 {[%emt 0:24:10]} 0-1

[Event "EYTCC Open U18 2022"]
[Site "Thessaloniki"]
[Date "2022.07.12"]
[Round "1.37"]
[White "Betsakou, Sofia"]
[Black "Kristoferitsch, Daniel"]
[Result "0-1"]
[ECO "D03"]
[WhiteElo "1412"]
[BlackElo "2312"]
[Annotator "ChessBase"]
[PlyCount "58"]
[EventDate "2022.07.12"]
[EventType "team-tourn"]
[EventCountry "GRE"]
[SourceTitle "playchess.com"]
[Source "ChessBase"]
[SourceQuality "1"]
[WhiteTeam "Greece"]
[BlackTeam "Austria"]
[WhiteTeamCountry "GRE"]
[BlackTeamCountry "AUT"]
[TimeControl "40/5400+30:1800+30"]

1. d4 {[%emt 0:00:03]} Nf6 {[%emt 0:00:06]} 2. Nf3 {[%emt 0:00:05]} g6 {[%emt 0:00:04]} 3. Bg5 {[%emt 0:00:11]} Bg7 {[%emt 0:00:09]} 4. Nbd2 {[%emt 0:00:16]} d5 {[%emt 0:00:48]} 5. e3 {[%emt 0:00:44]} O-O {[%emt 0:00:21]} 6. Be2 {[%emt 0:00:15]} c5 {[%emt 0:05:48]} 7. c3 {[%emt 0:02:38]} b6 {[%emt 0:12:59]} 8. O-O {[%emt 0:03:10]} Nbd7 {[%emt 0:03:55]} 9. a4 {[%emt 0:12:27]} a6 {[%emt 0:02:15]} 10. b4 {[%emt 0:08:14]} Re8 {[%emt 0:07:08]} 11. Re1 {[%emt 0:12:18]} Bb7 {[%emt 0:12:47]} 12. bxc5 {[%emt 0:14:52]} bxc5 {[%emt 0:00:18]} 13. c4 {[%emt 0:20:00]} Ne4 {[%emt 0:05:02]} 14. cxd5 {[%emt 0:04:16]} Nxg5 15. Nxg5 {[%emt 0:00:22]} cxd4 {[%emt 0:05:59]} 16. Rb1 {[%emt 0:09:55]} Bxd5 {[%emt 0:03:54]} 17. exd4 {[%emt 0:02:16]} Qa5 {[%emt 0:08:24]} 18. Ngf3 {[%emt 0:02:23]} Rec8 {[%emt 0:04:26]} 19. Bd3 {[%emt 0:01:59]} e6 {[%emt 0:01:01]} 20. Be4 {[%emt 0:01:22]} Nf6 {[%emt 0:02:24]} 21. Ne5 {[%emt 0:01:32]} Rc3 {[%emt 0:14:03]} 22. f3 {[%emt 0:00:45]} Rd8 {[%emt 0:02:21]} 23. Nf1 {[%emt 0:01:06]} Nxe4 {[%emt 0:01:26]} 24. fxe4 {[%emt 0:00:12]} Ba2 {[%emt 0:00:18]} 25. Rb2 {[%emt 0:00:37]} Bxe5 {[%emt 0:00:26]} 26. Rxa2 {[%emt 0:00:17]} Bxd4+ {[%emt 0:00:17]} 27. Kh1 {[%emt 0:00:33]} Bf2 {[%emt 0:00:27]} 28. Qxd8+ {[%emt 0:01:02]} Qxd8 {[%emt 0:00:10]} 29. Rxf2 {[%emt 0:00:02]} Ra3 {[%emt 0:01:57]} 0-1

[Event "EYTCC Open U18 2022"]
[Site "Thessaloniki"]
[Date "2022.07.12"]
[Round "1.38"]
[White "Borrmann, Laurenz"]
[Black "Betsakos, Haralampos"]
[Result "1-0"]
[ECO "D02"]
[WhiteElo "2274"]
[BlackElo "1183"]
[Annotator "ChessBase"]
[PlyCount "75"]
[EventDate "2022.07.12"]
[EventType "team-tourn"]
[EventCountry "GRE"]
[SourceTitle "playchess.com"]
[Source "ChessBase"]
[SourceQuality "1"]
[WhiteTeam "Austria"]
[BlackTeam "Greece"]
[WhiteTeamCountry "AUT"]
[BlackTeamCountry "GRE"]
[TimeControl "40/5400+30:1800+30"]

1. Nf3 {[%emt 0:00:04]} Nf6 {[%emt 0:00:11]} 2. g3 {[%emt 0:00:10]} e6 {[%emt 0:00:41]} 3. Bg2 {[%emt 0:00:21]} d5 {[%emt 0:00:40]} 4. O-O {[%emt 0:01:12]} Bd6 {[%emt 0:00:40]} 5. d4 {[%emt 0:04:08]} Nbd7 {[%emt 0:04:28]} 6. c4 {[%emt 0:01:51]} b6 {[%emt 0:04:05]} 7. Nc3 {[%emt 0:02:06]} Bb7 {[%emt 0:06:18]} 8. cxd5 {[%emt 0:01:06]} Nxd5 {[%emt 0:07:02]} 9. Nb5 {[%emt 0:01:16]} a6 {[%emt 0:04:54]} 10. Nxd6+ {[%emt 0:01:31]} cxd6 {[%emt 0:00:12]} 11. e4 {[%emt 0:07:56]} Ne7 {[%emt 0:17:28]} 12. Nd2 {[%emt 0:02:40]} O-O {[%emt 0:03:43]} 13. b3 {[%emt 0:00:38]} b5 {[%emt 0:07:26]} 14. Bb2 {[%emt 0:02:46]} Qb6 {[%emt 0:02:37]} 15. a4 {[%emt 0:24:41]} d5 {[%emt 0:05:18]} 16. e5 {[%emt 0:04:39]} b4 {[%emt 0:09:15]} 17. a5 {[%emt 0:08:23]} Qc7 {[%emt 0:08:28]} 18. Ra4 {[%emt 0:00:56]} Nc6 {[%emt 0:02:25]} 19. Qa1 {[%emt 0:01:37]} Rfc8 {[%emt 0:01:09]} 20. Nf3 {[%emt 0:01:10]} Qd8 {[%emt 0:01:43]} 21. Ne1 {[%emt 0:01:01]} Rab8 {[%emt 0:02:17]} 22. Nd3 {[%emt 0:00:46]} Ba8 {[%emt 0:00:35]} 23. Rc1 {[%emt 0:00:50]} Rb5 {[%emt 0:03:23]} 24. Bf1 {[%emt 0:00:39]} Qe8 {[%emt 0:02:00]} 25. Nf4 {[%emt 0:01:34]} Rbb8 {[%emt 0:03:15]} 26. Bxa6 {[%emt 0:00:35]} Rc7 {[%emt 0:01:44]} 27. Be2 {[%emt 0:02:15]} Ra7 {[%emt 0:00:30]} 28. Nd3 {[%emt 0:03:45]} Qd8 {[%emt 0:00:42]} 29. a6 {[%emt 0:04:34]} Rb6 {[%emt 0:00:51]} 30. Nc5 {[%emt 0:00:46]} Qc8 {[%emt 0:00:29]} 31. Nxd7 {[%emt 0:00:37]} Qxd7 {[%emt 0:00:09]} 32. Rc5 {[%emt 0:00:31]} Nb8 {[%emt 0:00:49]} 33. Raa5 {[%emt 0:03:45]} Nc6 {[%emt 0:00:31]} 34. Bb5 {[%emt 0:01:50]} Qd8 {[%emt 0:00:36]} 35. Qc1 {[%emt 0:03:30]} Nxa5 {[%emt 0:00:42]} 36. Rc8 {[%emt 0:00:25]} Qf8 {[%emt 0:00:11]} 37. Rxf8+ {[%emt 0:00:15]} Kxf8 {[%emt 0:00:10]} 38. Qc8+ {[%emt 0:00:21]} 1-0

[Event "EYTCC Open U18 2022"]
[Site "Thessaloniki"]
[Date "2022.07.12"]
[Round "1.39"]
[White "Karkanas, Stylianos"]
[Black "Marakovits, Nico"]
[Result "0-1"]
[ECO "A03"]
[WhiteElo "1089"]
[BlackElo "2259"]
[Annotator "ChessBase"]
[PlyCount "118"]
[EventDate "2022.07.12"]
[EventType "team-tourn"]
[EventCountry "GRE"]
[SourceTitle "playchess.com"]
[Source "ChessBase"]
[SourceQuality "1"]
[WhiteTeam "Greece"]
[BlackTeam "Austria"]
[WhiteTeamCountry "GRE"]
[BlackTeamCountry "AUT"]
[TimeControl "40/5400+30:1800+30"]

1. f4 {[%emt 0:00:03]} d5 {[%emt 0:00:12]} 2. Nf3 {[%emt 0:00:11]} Nf6 {[%emt 0:00:05]} 3. e3 {[%emt 0:00:22]} g6 {[%emt 0:00:12]} 4. Nc3 {[%emt 0:00:16]} Bg7 {[%emt 0:00:15]} 5. b3 {[%emt 0:01:23]} O-O {[%emt 0:08:31]} 6. Bb2 {[%emt 0:01:01]} c5 {[%emt 0:01:19]} 7. Bd3 {[%emt 0:02:50]} Nc6 {[%emt 0:03:54]} 8. O-O {[%emt 0:03:06]} a6 {[%emt 0:07:04]} 9. Ne2 {[%emt 0:02:28]} Qc7 {[%emt 0:05:18]} 10. Ng3 {[%emt 0:03:04]} Bg4 {[%emt 0:10:01]} 11. Be2 {[%emt 0:06:58]} Bxf3 {[%emt 0:02:28]} 12. Bxf3 {[%emt 0:00:26]} e5 {[%emt 0:05:19]} 13. d3 {[%emt 0:13:48]} exf4 {[%emt 0:02:08]} 14. exf4 {[%emt 0:00:43]} Qxf4 {[%emt 0:03:36]} 15. Kh1 {[%emt 0:03:21]} Qd6 {[%emt 0:01:11]} 16. Rc1 {[%emt 0:06:03]} Nh5 {[%emt 0:06:04]} 17. Bxh5 {[%emt 0:12:16]} Bxb2 {[%emt 0:00:21]} 18. Rb1 {[%emt 0:00:43]} Bg7 {[%emt 0:02:22]} 19. Bf3 {[%emt 0:00:42]} Nd4 {[%emt 0:00:30]} 20. Qd2 {[%emt 0:02:00]} f5 {[%emt 0:01:17]} 21. Rbe1 {[%emt 0:01:57]} Nxf3 {[%emt 0:01:36]} 22. Rxf3 {[%emt 0:01:06]} Rae8 {[%emt 0:00:57]} 23. Rf2 {[%emt 0:03:16]} Bh6 {[%emt 0:04:32]} 24. Qd1 {[%emt 0:01:22]} d4 {[%emt 0:08:24]} 25. Rfe2 {[%emt 0:05:45]} Be3 {[%emt 0:01:03]} 26. Nf1 {[%emt 0:01:44]} f4 {[%emt 0:00:16]} 27. Nd2 {[%emt 0:00:16]} Qd5 {[%emt 0:01:27]} 28. Ne4 {[%emt 0:00:49]} Kg7 {[%emt 0:04:14]} 29. Rf1 {[%emt 0:04:22]} Rf5 {[%emt 0:02:34]} 30. Ree1 {[%emt 0:02:38]} b6 {[%emt 0:06:24]} 31. a4 {[%emt 0:03:43]} Qd8 {[%emt 0:01:02]} 32. Qf3 {[%emt 0:01:36]} Rh5 {[%emt 0:01:58]} 33. Qg4 {[%emt 0:04:45]} Rh4 {[%emt 0:03:12]} 34. Qg5 {[%emt 0:01:07]} Qxg5 {[%emt 0:01:27]} 35. Nxg5 {[%emt 0:00:06]} Rh5 {[%emt 0:00:25]} 36. Ne4 {[%emt 0:00:22]} Ree5 {[%emt 0:03:12]} 37. Rf3 {[%emt 0:01:19]} g5 {[%emt 0:01:30]} 38. g4 {[%emt 0:04:50]} Rh4 {[%emt 0:00:09]} 39. h3 {[%emt 0:00:22]} h5 {[%emt 0:00:09]} 40. Nf2 {[%emt 0:00:00]} hxg4 {[%emt 0:00:00]} 41. Nxg4 {[%emt 0:01:59]} Re8 {[%emt 0:00:37]} 42. Kg2 {[%emt 0:00:20]} Kg6 {[%emt 0:00:24]} 43. Kf1 {[%emt 0:05:08]} Kf5 {[%emt 0:00:57]} 44. Kg2 {[%emt 0:01:35]} a5 {[%emt 0:05:49]} 45. Nf2 {[%emt 0:03:08]} Re6 {[%emt 0:01:17]} 46. Ng4 {[%emt 0:03:02]} Re7 {[%emt 0:03:24]} 47. Nf2 {[%emt 0:01:08]} Reh7 {[%emt 0:01:36]} 48. Ng4 {[%emt 0:00:35]} Rxg4+ {[%emt 0:00:36]} 49. hxg4+ {[%emt 0:00:52]} Kxg4 {[%emt 0:00:04]} 50. Ref1 {[%emt 0:01:52]} Rh4 {[%emt 0:00:13]} 51. Re1 {[%emt 0:02:01]} Rh2+ {[%emt 0:00:24]} 52. Kxh2 {[%emt 0:00:15]} Kxf3 {[%emt 0:00:03]} 53. Rf1+ {[%emt 0:01:28]} Bf2 {[%emt 0:00:18]} 54. Rc1 {[%emt 0:01:18]} g4 {[%emt 0:00:10]} 55. b4 {[%emt 0:02:03]} g3+ {[%emt 0:00:05]} 56. Kh3 {[%emt 0:00:20]} g2 {[%emt 0:00:40]} 57. bxa5 {[%emt 0:00:31]} bxa5 {[%emt 0:00:44]} 58. c4 {[%emt 0:00:49]} g1=Q {[%emt 0:00:50]} 59. Rxg1 {[%emt 0:00:20]} Bxg1 {[%emt 0:00:05]} 0-1

[Event "EYTCC Open U18 2022"]
[Site "Thessaloniki"]
[Date "2022.07.12"]
[Round "1.40"]
[White "Pilshofer, Paul"]
[Black "Maki, Eftychia Maria"]
[Result "1-0"]
[ECO "D11"]
[WhiteElo "2223"]
[BlackElo "1157"]
[Annotator "ChessBase"]
[PlyCount "49"]
[EventDate "2022.07.12"]
[EventType "team-tourn"]
[EventCountry "GRE"]
[SourceTitle "playchess.com"]
[Source "ChessBase"]
[SourceQuality "1"]
[WhiteTeam "Austria"]
[BlackTeam "Greece"]
[WhiteTeamCountry "AUT"]
[BlackTeamCountry "GRE"]
[TimeControl "40/5400+30:1800+30"]

1. d4 {[%emt 0:00:00]} d5 {[%emt 0:04:50]} 2. Nf3 {[%emt 0:00:09]} Nf6 {[%emt 0:00:55]} 3. g3 {[%emt 0:00:06]} Bf5 {[%emt 0:02:43]} 4. Bg2 {[%emt 0:00:08]} h6 {[%emt 0:01:35]} 5. O-O {[%emt 0:00:10]} e6 {[%emt 0:01:03]} 6. c4 {[%emt 0:00:30]} c6 {[%emt 0:10:45]} 7. Nc3 {[%emt 0:01:36]} Nbd7 {[%emt 0:03:52]} 8. Nd2 {[%emt 0:00:56]} Bd6 {[%emt 0:06:54]} 9. e4 {[%emt 0:00:56]} dxe4 {[%emt 0:01:24]} 10. Ndxe4 {[%emt 0:00:05]} Bc7 {[%emt 0:10:29]} 11. Qb3 {[%emt 0:04:38]} Qb8 {[%emt 0:10:51]} 12. Nxf6+ {[%emt 0:08:00]} Nxf6 {[%emt 0:03:36]} 13. d5 {[%emt 0:03:18]} O-O {[%emt 0:08:04]} 14. dxc6 {[%emt 0:02:12]} b6 {[%emt 0:02:13]} 15. Be3 {[%emt 0:04:26]} Qd8 {[%emt 0:07:09]} 16. Qa3 {[%emt 0:04:17]} Qb8 {[%emt 0:02:25]} 17. Rfd1 {[%emt 0:09:12]} Rd8 {[%emt 0:01:15]} 18. Rxd8+ Qxd8 {[%emt 0:00:29]} 19. Rd1 {[%emt 0:12:55]} Qe8 {[%emt 0:01:34]} 20. Nb5 {[%emt 0:06:29]} Rc8 {[%emt 0:04:06]} 21. Qxa7 {[%emt 0:06:56]} Qe7 {[%emt 0:01:02]} 22. Nxc7 {[%emt 0:00:47]} Qxc7 {[%emt 0:01:28]} 23. Qxc7 {[%emt 0:00:18]} Rxc7 {[%emt 0:00:19]} 24. Bxb6 {[%emt 0:00:02]} Rc8 {[%emt 0:00:23]} 25. c7 {[%emt 0:00:08]} 1-0

[Event "EYTCC Open U18 2022"]
[Site "Thessaloniki"]
[Date "2022.07.13"]
[Round "2.1"]
[White "Milikow, Yoav"]
[Black "Filip, Andrei"]
[Result "1-0"]
[ECO "E32"]
[WhiteElo "2452"]
[BlackElo "2344"]
[Annotator "ChessBase"]
[PlyCount "91"]
[EventDate "2022.07.12"]
[EventType "team-tourn"]
[EventCountry "GRE"]
[SourceTitle "playchess.com"]
[Source "ChessBase"]
[SourceQuality "1"]
[WhiteTeam "Israel"]
[BlackTeam "Romania"]
[WhiteTeamCountry "ISR"]
[BlackTeamCountry "ROU"]
[TimeControl "40/5400+30:1800+30"]

1. d4 {[%emt 0:00:04]} Nf6 {[%emt 0:00:30]} 2. c4 {[%emt 0:00:12]} e6 {[%emt 0:00:04]} 3. Nc3 {[%emt 0:00:06]} Bb4 {[%emt 0:00:04]} 4. Qc2 {[%emt 0:00:12]} O-O {[%emt 0:00:06]} 5. Nf3 {[%emt 0:00:24]} c5 {[%emt 0:00:12]} 6. dxc5 {[%emt 0:00:07]} Na6 {[%emt 0:00:04]} 7. c6 {[%emt 0:00:09]} bxc6 {[%emt 0:05:17]} 8. e3 {[%emt 0:00:14]} d5 {[%emt 0:14:50]} 9. Bd2 {[%emt 0:00:33]} Nc7 {[%emt 0:06:46]} 10. Be2 {[%emt 0:05:18]} a5 {[%emt 0:03:09]} 11. O-O {[%emt 0:02:50]} Qe7 {[%emt 0:14:02]} 12. a3 {[%emt 0:14:59]} Bd6 {[%emt 0:01:08]} 13. Rac1 {[%emt 0:04:36]} Nd7 {[%emt 0:06:10]} 14. e4 {[%emt 0:04:01]} Bb7 {[%emt 0:07:29]} 15. exd5 {[%emt 0:05:12]} cxd5 {[%emt 0:01:05]} 16. Bd3 {[%emt 0:05:30]} h6 {[%emt 0:05:34]} 17. Rfe1 {[%emt 0:01:29]} Qd8 {[%emt 0:02:41]} 18. Rcd1 {[%emt 0:03:10]} Nc5 {[%emt 0:02:44]} 19. Be3 {[%emt 0:04:53]} Nxd3 {[%emt 0:02:30]} 20. Qxd3 {[%emt 0:00:02]} Ba6 {[%emt 0:04:43]} 21. Nb5 {[%emt 0:00:22]} Nxb5 {[%emt 0:04:09]} 22. cxb5 {[%emt 0:00:02]} Bb7 {[%emt 0:00:09]} 23. Bd4 {[%emt 0:00:42]} Re8 {[%emt 0:00:36]} 24. Ne5 {[%emt 0:05:46]} Rc8 {[%emt 0:03:05]} 25. f4 {[%emt 0:06:33]} Qh4 {[%emt 0:01:52]} 26. Re3 {[%emt 0:01:13]} Bc5 {[%emt 0:08:24]} 27. Rf1 {[%emt 0:07:30]} Bxd4 {[%emt 0:01:01]} 28. Qxd4 {[%emt 0:00:02]} Rc2 {[%emt 0:01:19]} 29. Rg3 {[%emt 0:05:14]} Qf6 {[%emt 0:01:00]} 30. Qb6 {[%emt 0:00:59]} Qe7 {[%emt 0:01:00]} 31. Qd4 {[%emt 0:01:32]} Qf6 {[%emt 0:00:11]} 32. Qa4 {[%emt 0:03:44]} Rec8 {[%emt 0:02:26]} 33. h3 {[%emt 0:00:38]} Qd8 {[%emt 0:01:15]} 34. Qd4 {[%emt 0:01:26]} Qf6 {[%emt 0:00:29]} 35. Kh2 {[%emt 0:01:09]} h5 {[%emt 0:01:19]} 36. Rg5 {[%emt 0:02:37]} Re2 {[%emt 0:00:21]} 37. Rf3 {[%emt 0:01:37]} Re4 {[%emt 0:00:42]} 38. Qb6 {[%emt 0:00:47]} Ba8 {[%emt 0:00:28]} 39. Rfg3 {[%emt 0:01:40]} h4 {[%emt 0:00:33]} 40. Rxg7+ {[%emt 0:00:00]} Qxg7 {[%emt 0:00:00]} 41. Rxg7+ {[%emt 0:00:22]} Kxg7 {[%emt 0:00:17]} 42. Qf2 {[%emt 0:02:03]} Rh8 {[%emt 0:01:39]} 43. Qf3 {[%emt 0:00:46]} f5 {[%emt 0:01:41]} 44. Qc3 {[%emt 0:00:21]} Rh7 {[%emt 0:05:40]} 45. Qc7+ {[%emt 0:00:56]} Kh6 {[%emt 0:00:06]} 46. Qd8 1-0

[Event "EYTCC Open U18 2022"]
[Site "Thessaloniki"]
[Date "2022.07.13"]
[Round "2.2"]
[White "Stepanencu, Nicodim-Cosmin"]
[Black "Rozen, Eytan"]
[Result "1/2-1/2"]
[ECO "D30"]
[WhiteElo "2277"]
[BlackElo "2465"]
[Annotator "ChessBase"]
[PlyCount "74"]
[EventDate "2022.07.12"]
[EventType "team-tourn"]
[EventCountry "GRE"]
[SourceTitle "playchess.com"]
[Source "ChessBase"]
[SourceQuality "1"]
[WhiteTeam "Romania"]
[BlackTeam "Israel"]
[WhiteTeamCountry "ROU"]
[BlackTeamCountry "ISR"]
[TimeControl "40/5400+30:1800+30"]

1. d4 {[%emt 0:00:04]} d5 {[%emt 0:02:35]} 2. c4 {[%emt 0:00:09]} e6 {[%emt 0:00:29]} 3. Nf3 {[%emt 0:01:03]} dxc4 {[%emt 0:00:43]} 4. Qa4+ {[%emt 0:12:50]} Nd7 {[%emt 0:02:47]} 5. g3 {[%emt 0:01:40]} a6 {[%emt 0:05:57]} 6. Qxc4 {[%emt 0:00:13]} b5 {[%emt 0:02:31]} 7. Qc2 {[%emt 0:03:19]} Bb7 {[%emt 0:02:38]} 8. Bg2 {[%emt 0:00:05]} c5 {[%emt 0:00:36]} 9. dxc5 {[%emt 0:04:23]} Bxc5 {[%emt 0:00:47]} 10. Nbd2 {[%emt 0:10:29]} Ngf6 {[%emt 0:03:50]} 11. O-O {[%emt 0:03:05]} Rc8 {[%emt 0:02:54]} 12. Qb1 {[%emt 0:02:51]} Qe7 {[%emt 0:03:39]} 13. Ng5 {[%emt 0:12:38]} Bxg2 {[%emt 0:02:14]} 14. Kxg2 {[%emt 0:00:02]} O-O {[%emt 0:02:42]} 15. a4 {[%emt 0:12:44]} Bb6 {[%emt 0:11:45]} 16. axb5 {[%emt 0:02:32]} axb5 {[%emt 0:01:57]} 17. Nde4 {[%emt 0:02:21]} h6 {[%emt 0:01:30]} 18. Nf3 {[%emt 0:01:44]} Nxe4 {[%emt 0:15:53]} 19. Qxe4 {[%emt 0:00:03]} Rc4 {[%emt 0:00:11]} 20. Qb7 {[%emt 0:08:58]} Rc7 {[%emt 0:02:53]} 21. Qe4 {[%emt 0:00:37]} Rc4 {[%emt 0:01:40]} 22. Qb7 {[%emt 0:00:05]} Rc7 {[%emt 0:00:10]} 23. Qe4 {[%emt 0:00:02]} e5 {[%emt 0:08:13]} 24. Rd1 {[%emt 0:02:31]} Qe6 {[%emt 0:04:03]} 25. b3 {[%emt 0:15:24]} Qxb3 {[%emt 0:11:02]} 26. Ba3 {[%emt 0:01:03]} f5 {[%emt 0:03:28]} 27. Qd5+ {[%emt 0:01:23]} Qxd5 {[%emt 0:00:02]} 28. Rxd5 {[%emt 0:00:01]} Ra8 {[%emt 0:01:11]} 29. Bb2 {[%emt 0:02:09]} Rxa1 {[%emt 0:01:51]} 30. Bxa1 {[%emt 0:00:00]} b4 {[%emt 0:01:31]} 31. Nxe5 {[%emt 0:00:48]} Nxe5 {[%emt 0:00:33]} 32. Rxe5 {[%emt 0:00:39]} Rc1 {[%emt 0:03:25]} 33. Re8+ {[%emt 0:00:34]} Kf7 {[%emt 0:00:25]} 34. Rb8 {[%emt 0:00:01]} Bc7 {[%emt 0:00:43]} 35. Rb7 {[%emt 0:00:01]} Rxa1 {[%emt 0:00:26]} 36. Rxc7+ {[%emt 0:00:01]} Kf6 {[%emt 0:00:18]} 37. Rb7 {[%emt 0:00:04]} Ke5 1/2-1/2